bitfinex/quotes_BTCUSD_20240811
["timestamp","ask_amount","ask_price","bid_price","bid_amount"]
[1723389092339,0.03,60304.0,60303.0,0.5804]
[1723389092545,0.03,60299.0,60298.0,0.34827]
[1723389092758,0.03,60299.0,60271.0,0.1139]
[1723389092759,0.01,60286.0,60271.0,0.1139]
[1723389092967,0.08184646,60277.0,60276.0,0.58066]
[1723389093384,0.08184646,60277.0,60276.0,0.812924]
[1723389093591,0.08184646,60277.0,60276.0,0.74447492]
[1723389094006,0.31834646,60277.0,60276.0,0.74447492]
[1723389094211,0.31834646,60277.0,60276.0,0.27994692]
[1723389094419,0.31834646,60277.0,60276.0,0.51221092]
[1723389094736,0.232206,60292.0,60276.0,0.51221092]
[1723389094737,0.09184646,60302.0,60301.0,0.348252]
[1723389094939,0.08184646,60309.0,60308.0,0.348211]
[1723389095143,0.08184646,60309.0,60308.0,0.580352]
[1723389095344,0.08184646,60309.0,60308.0,0.812493]
[1723389096050,0.08184646,60309.0,60308.0,0.935493]
[1723389096187,0.08184646,60309.0,60308.0,1.09930792]
[1723389096562,0.01,60318.0,60315.0,0.812399]
[1723389096770,0.1145,60319.0,60315.0,0.99921392]
[1723389096771,0.09184646,60316.0,60315.0,0.99921392]
[1723389096974,0.09184646,60316.0,60315.0,1.23132792]
[1723389096975,0.08184646,60316.0,60315.0,1.23132792]
[1723389097185,0.0001,60329.0,60315.0,1.23132792]
[1723389097186,0.09184646,60324.0,60323.0,0.580207]
[1723389097407,0.09184646,60324.0,60323.0,0.99910492]
[1723389097408,0.08184646,60324.0,60323.0,0.99910492]
[1723389097598,0.08184646,60324.0,60323.0,0.76702192]
[1723389097808,0.02,60320.0,60319.0,0.232098]
[1723389098003,0.02,60318.0,60317.0,0.116053]
[1723389098249,0.02,60318.0,60306.0,0.1]
[1723389098250,0.02,60314.0,60306.0,0.1]
[1723389098445,0.02,60314.0,60313.0,0.348183]
[1723389098652,0.02,60306.0,60305.0,0.232153]
[1723389098853,0.1345,60306.0,60305.0,0.348229]
[1723389099056,0.1345,60306.0,60305.0,0.580382]
[1723389099057,0.1145,60306.0,60305.0,0.580382]
[1723389099472,0.08184646,60310.0,60309.0,0.116068]
[1723389099603,0.08184646,60310.0,60309.0,0.812479]
[1723389099802,0.10184646,60310.0,60309.0,0.812479]
[1723389100407,0.10184646,60310.0,60309.0,0.348205]
[1723389100644,0.000827,60324.0,60309.0,0.49161492]
[1723389100841,0.000827,60324.0,60323.0,1.158273]
[1723389101010,0.000827,60324.0,60323.0,1.44508792]
[1723389101212,0.000827,60324.0,60323.0,1.55015871]
[1723389101411,0.000827,60324.0,60323.0,1.78224171]
[1723389101611,0.000827,60324.0,60323.0,1.85104636]
[1723389101817,0.0001,60329.0,60328.0,0.348096]
[1723389102021,0.0001,60329.0,60328.0,1.20410971]
[1723389102237,0.0001,60329.0,60328.0,1.43617371]
[1723389102408,0.0001,60329.0,60328.0,1.32960292]
[1723389102609,0.0001,60329.0,60328.0,1.09753892]
[1723389102982,0.0001,60329.0,60328.0,1.30233892]
[1723389103168,0.0001,60329.0,60328.0,1.434628]
[1723389103724,0.0001,60329.0,60328.0,1.202564]
[1723389103924,0.0001,60329.0,60328.0,1.09753892]
[1723389104129,0.0001,60329.0,60328.0,1.20265549]
[1723389104334,0.0001,60329.0,60328.0,1.43471886]
[1723389104966,0.0001,60329.0,60328.0,1.09753892]
[1723389105187,0.0001,60329.0,60328.0,1.32960292]
[1723389105379,0.0001,60329.0,60328.0,1.43471637]
[1723389105815,0.0001,60329.0,60328.0,1.32960292]
[1723389106021,0.08194646,60329.0,60328.0,1.30660292]
[1723389106220,0.08194646,60329.0,60328.0,1.4110525]
[1723389106503,0.08194646,60329.0,60328.0,1.5280525]
[1723389106992,0.08194646,60329.0,60328.0,1.4110525]
[1723389107191,0.08194646,60329.0,60328.0,1.41046635]
[1723389107421,0.08194646,60329.0,60328.0,1.43346635]
[1723389107723,0.08194646,60329.0,60328.0,1.42040292]
[1723389107929,0.00829,60332.0,60331.0,1.044238]
[1723389108157,0.00829,60332.0,60331.0,1.43490331]
[1723389108354,0.00829,60332.0,60331.0,1.43488934]
[1723389109386,0.00807823,60332.0,60331.0,1.43488934]
[1723389110166,0.00807823,60332.0,60331.0,1.43464034]
[1723389110599,0.00807823,60332.0,60331.0,1.43463812]
[1723389111264,0.00807823,60332.0,60331.0,1.33105292]
[1723389111635,0.23207823,60332.0,60331.0,0.76694692]
[1723389111839,0.02,60331.0,60330.0,0.116028]
[1723389112491,0.02,60331.0,60330.0,0.74395692]
[1723389112695,0.02,60331.0,60330.0,0.97601392]
[1723389113099,0.00807823,60332.0,60331.0,0.812185]
[1723389113420,0.00807823,60332.0,60331.0,1.20805292]
[1723389113624,0.00807823,60332.0,60331.0,1.23105292]
[1723389113827,0.00807823,60332.0,60331.0,1.33105292]
[1723389116094,0.00807823,60332.0,60331.0,1.42105292]
[1723389116613,0.00807823,60332.0,60331.0,1.33105292]
[1723389116839,0.01807823,60332.0,60331.0,1.09899992]
[1723389117015,0.00807823,60332.0,60331.0,1.09899992]
[1723389119150,0.01807823,60332.0,60331.0,1.09899992]
[1723389119552,0.00807823,60332.0,60331.0,1.09899992]
[1723389121080,0.01807823,60332.0,60331.0,1.09899992]
[1723389121245,0.00807823,60332.0,60331.0,1.09899992]
[1723389121933,0.23207823,60332.0,60331.0,0.603132]
[1723389122131,0.35203,60329.0,60328.0,0.0009086]
[1723389122345,0.35203,60329.0,60324.0,0.025864]
[1723389122346,0.584114,60325.0,60324.0,0.025864]
[1723389122557,0.584114,60325.0,60286.0,0.09]
[1723389122558,0.01,60292.0,60291.0,0.34831]
[1723389122767,0.1201,60299.0,60298.0,0.34827]
[1723389122971,0.08184646,60303.0,60302.0,0.58041]
[1723389123383,0.08184646,60303.0,60302.0,0.812574]
[1723389123610,0.10184646,60303.0,60302.0,0.58041]
[1723389123816,0.09184646,60303.0,60302.0,0.348246]
[1723389124023,0.08184646,60303.0,60302.0,0.348246]
[1723389124429,0.10184646,60303.0,60302.0,0.116082]
[1723389125047,0.22234646,60303.0,60302.0,0.116082]
[1723389125473,0.02,60293.0,60292.0,0.232203]
[1723389125701,0.08184646,60293.0,60292.0,0.74432192]
[1723389125917,0.1205,60302.0,60292.0,0.74432192]
[1723389125918,0.1205,60302.0,60292.0,0.16381492]
[1723389126135,0.08184646,60303.0,60302.0,0.348246]
[1723389126344,0.08184646,60303.0,60302.0,0.74422492]
[1723389126546,0.08184646,60303.0,60302.0,0.97638892]
[1723389127196,0.08184646,60303.0,60302.0,0.76722492]
[1723389127837,0.08184646,60303.0,60302.0,0.99938892]
[1723389128246,0.08184646,60303.0,60302.0,0.76722492]
[1723389128653,0.10184646,60303.0,60302.0,0.76722492]
[1723389128858,0.08184646,60303.0,60302.0,0.76722492]
[1723389128968,0.08184646,60303.0,60302.0,0.99938892]
[1723389129170,0.08184646,60303.0,60302.0,0.76722492]
[1723389130211,0.09184646,60303.0,60302.0,0.76722492]
[1723389130415,0.08184646,60303.0,60302.0,0.76722492]
[1723389130831,0.08184646,60303.0,60302.0,0.99938892]
[1723389132830,0.08184646,60311.0,60309.0,0.116068]
[1723389132831,0.02,60310.0,60309.0,0.116068]
[1723389132964,0.01,60305.0,60304.0,0.232154]
[1723389133162,0.02,60305.0,60304.0,0.84420392]
[1723389133426,1.2644892,60310.0,60305.0,0.580382]
[1723389133427,0.02,60306.0,60305.0,0.580382]
[1723389133598,0.02,60308.0,60307.0,0.348217]
[1723389133803,0.02,60308.0,60307.0,0.51203192]
[1723389134007,0.02,60308.0,60307.0,0.53503192]
[1723389135976,0.02,60308.0,60307.0,0.76717692]
[1723389136339,0.01,60308.0,60307.0,0.76717692]
[1723389136539,1.2644892,60308.0,60307.0,0.76717692]
[1723389136943,1.2844892,60308.0,60307.0,0.76717692]
[1723389137287,0.0888,60319.0,60307.0,0.76717692]
[1723389137288,0.28804646,60329.0,60328.0,0.812224]
[1723389137521,0.02,60316.0,60307.0,0.16381492]
[1723389137736,0.1174,60308.0,60307.0,0.116072]
[1723389137948,0.1174,60308.0,60307.0,0.348217]
[1723389138149,0.1374,60308.0,60307.0,0.3491256]
[1723389138343,0.1374,60308.0,60307.0,0.1169806]
[1723389138556,0.1374,60308.0,60307.0,0.3491256]
[1723389138767,0.1374,60308.0,60307.0,0.1169806]
[1723389138963,0.1374,60308.0,60307.0,0.3491256]
[1723389139368,0.1374,60308.0,60307.0,0.5812706]
[1723389140527,0.1374,60308.0,60307.0,0.6042706]
[1723389141181,0.1274,60308.0,60307.0,0.6042706]
[1723389141831,0.1374,60308.0,60307.0,0.3721256]
[1723389142039,0.574411,60308.0,60307.0,0.0009086]
[1723389142356,0.808552,60308.0,60307.0,0.0009086]
[1723389142550,2.0730412,60308.0,60307.0,0.0009086]
[1723389142754,0.02,60287.0,60276.0,0.0009097]
[1723389142957,0.10184646,60286.0,60285.0,0.348345]
[1723389143166,0.10184646,60286.0,60285.0,0.97661992]
[1723389143381,0.02,60289.0,60288.0,0.580545]
[1723389143579,0.02,60291.0,60290.0,0.580525]
[1723389143782,0.02,60291.0,60290.0,0.97654992]
[1723389143993,0.01,60291.0,60290.0,0.97654992]
[1723389144210,0.01,60291.0,60290.0,1.20875992]
[1723389144454,0.08184646,60306.0,60294.0,0.0963]
[1723389144658,0.08184646,60306.0,60305.0,0.348229]
[1723389144861,0.08184646,60306.0,60305.0,1.09934992]
[1723389144862,0.09184646,60306.0,60305.0,1.09934992]
[1723389145117,0.09184646,60306.0,60305.0,0.86719692]
[1723389145336,0.08184646,60306.0,60305.0,0.86719692]
[1723389145613,0.08184646,60306.0,60305.0,1.09934992]
[1723389145818,0.08184646,60306.0,60305.0,1.20364312]
[1723389146477,0.08184646,60306.0,60305.0,1.43579612]
[1723389146680,0.08184646,60306.0,60305.0,1.20364312]
[1723389147513,0.08184646,60306.0,60305.0,1.20345841]
[1723389147717,0.08184646,60306.0,60305.0,1.10345841]
[1723389147933,0.002,60319.0,60305.0,1.10345841]
[1723389147934,0.01,60324.0,60306.0,0.2101]
[1723389148139,0.01,60324.0,60323.0,0.345883]
[1723389148337,0.08184646,60329.0,60323.0,0.345883]
[1723389148338,0.08184646,60329.0,60328.0,0.116032]
[1723389148579,0.08184646,60329.0,60328.0,1.10314641]
[1723389148781,0.08184646,60329.0,60328.0,1.20314641]
[1723389149412,0.00807823,60332.0,60331.0,0.812185]
[1723389149619,0.00807823,60332.0,60331.0,1.43516041]
[1723389150240,0.00807823,60332.0,60331.0,1.20310741]
[1723389150875,0.00807823,60332.0,60331.0,1.2027206]
[1723389152963,0.00807823,60332.0,60331.0,1.4347736]
[1723389153343,0.00807823,60332.0,60331.0,1.2027206]
[1723389153746,0.13887823,60332.0,60331.0,0.91590568]
[1723389153921,0.13887823,60332.0,60331.0,0.812185]
[1723389154133,0.13887823,60332.0,60331.0,0.97599992]
[1723389154502,0.00807823,60332.0,60331.0,1.08040842]
[1723389154751,0.00807823,60332.0,60331.0,1.08040043]
[1723389154951,0.01,60322.0,60308.0,0.04222694]
[1723389155166,0.01,60324.0,60323.0,0.580207]
[1723389155377,0.01,60324.0,60323.0,0.81229]
[1723389155668,0.08184646,60328.0,60310.0,0.16381492]
[1723389155669,0.01,60325.0,60324.0,0.5802]
[1723389155828,0.01,60315.0,60314.0,0.348177]
[1723389156084,0.1308,60315.0,60314.0,0.348177]
[1723389156503,0.01,60310.0,60309.0,0.116068]
[1723389156712,0.01,60306.0,60305.0,0.1169846]
[1723389156916,0.01,60306.0,60305.0,0.3491376]
[1723389157133,0.01,60306.0,60305.0,0.5812906]
[1723389157342,0.01,60306.0,60305.0,0.3491376]
[1723389158668,0.01,60309.0,60308.0,0.116069]
[1723389158874,0.01,60309.0,60308.0,0.580351]
[1723389159046,0.0886,60310.0,60309.0,0.116068]
[1723389159252,0.0986,60310.0,60309.0,0.348205]
[1723389159747,0.0986,60310.0,60309.0,0.116068]
[1723389159953,0.01,60307.0,60306.0,0.58037]
[1723389160168,0.0886,60310.0,60309.0,0.116068]
[1723389160520,0.0986,60310.0,60309.0,0.348205]
[1723389160735,0.0996,60310.0,60309.0,0.356205]
[1723389160930,0.1006,60310.0,60309.0,0.363205]
[1723389161173,0.1006,60310.0,60309.0,0.131068]
[1723389161397,0.0996,60310.0,60309.0,0.123068]
[1723389161603,0.1006,60310.0,60309.0,0.131068]
[1723389161811,0.099541,60310.0,60309.0,0.124068]
[1723389162107,0.220341,60310.0,60309.0,0.008]
[1723389162263,0.222341,60310.0,60309.0,0.008]
[1723389162646,0.38615592,60310.0,60309.0,0.008]
[1723389162854,0.51222192,60310.0,60309.0,0.008]
[1723389163078,0.002,60307.0,60305.0,0.0009086]
[1723389163431,0.20264646,60306.0,60305.0,0.0009086]
[1723389163627,0.21464646,60306.0,60305.0,0.0009086]
[1723389163832,0.21264646,60306.0,60305.0,0.0009086]
[1723389164011,0.21264646,60306.0,60305.0,0.5812906]
[1723389164012,0.1308,60306.0,60305.0,0.5812906]
[1723389164220,0.01,60306.0,60305.0,0.8244436]
[1723389164420,0.012,60307.0,60306.0,0.348223]
[1723389164648,0.002,60307.0,60306.0,0.97633592]
[1723389164855,0.01,60308.0,60307.0,0.580362]
[1723389165029,0.01,60308.0,60307.0,1.20846692]
[1723389165282,0.08184646,60314.0,60305.0,0.0119086]
[1723389165283,0.01,60309.0,60305.0,0.0119086]
[1723389165447,0.57066946,60306.0,60305.0,0.0009086]
[1723389165658,0.83328438,60306.0,60305.0,0.0009086]
[1723389165828,1.06543338,60306.0,60305.0,0.0009086]
[1723389166261,0.83428438,60306.0,60305.0,0.0129086]
[1723389166461,0.012,60295.0,60285.0,0.232229]
[1723389166642,0.1326,60295.0,60288.0,0.116108]
[1723389166845,0.1326,60295.0,60285.0,0.232229]
[1723389166846,0.248695,60295.0,60285.0,0.232229]
[1723389167132,0.1326,60295.0,60290.0,0.116104]
[1723389167338,0.1326,60295.0,60290.0,0.116105]
[1723389167571,0.1226,60295.0,60288.0,0.232217]
[1723389167773,0.1326,60295.0,60288.0,0.116108]
[1723389167982,0.1326,60295.0,60285.0,0.23223]
[1723389168190,0.1356,60295.0,60289.0,0.116107]
[1723389168605,0.1326,60295.0,60290.0,0.116105]
[1723389168806,0.1326,60295.0,60294.0,0.0029141]
[1723389168981,0.73250092,60295.0,60294.0,0.0029141]
[1723389169325,0.2204,60295.0,60294.0,0.0029141]
[1723389169533,0.336495,60295.0,60294.0,0.0029141]
[1723389169723,0.570686,60295.0,60294.0,0.0029141]
[1723389170130,0.568686,60295.0,60294.0,0.0009141]
[1723389170335,0.568686,60295.0,60294.0,0.0029141]
[1723389170592,0.568686,60295.0,60294.0,0.0049141]
[1723389170793,0.568686,60295.0,60294.0,0.0029141]
[1723389171169,0.571686,60295.0,60294.0,0.0009141]
[1723389171433,0.568686,60295.0,60294.0,0.0009141]
[1723389171624,0.570686,60295.0,60294.0,0.0009141]
[1723389171959,0.573686,60295.0,60294.0,0.0009141]
[1723389172165,0.2234,60295.0,60294.0,0.0009141]
[1723389172378,0.2254,60295.0,60294.0,0.0009141]
[1723389172577,0.2254,60295.0,60294.0,0.3492061]
[1723389172578,0.2234,60295.0,60294.0,0.3492061]
[1723389172787,0.1356,60295.0,60294.0,0.0009141]
[1723389172994,0.1356,60295.0,60294.0,0.1170111]
[1723389173217,0.01,60310.0,60309.0,0.116068]
[1723389173430,0.01,60317.0,60309.0,0.51201992]
[1723389173638,0.01,60312.0,60311.0,0.580325]
[1723389173841,0.01,60312.0,60311.0,0.97626992]
[1723389174043,0.01,60312.0,60311.0,0.99926992]
[1723389174873,0.011,60312.0,60311.0,0.616325]
[1723389175076,0.011,60312.0,60311.0,0.129065]
[1723389175285,0.011,60312.0,60311.0,0.013]
[1723389175495,0.011,60312.0,60311.0,0.361195]
[1723389175697,0.011,60312.0,60311.0,0.616325]
[1723389176279,0.012,60312.0,60311.0,0.618325]
[1723389176687,0.011,60312.0,60311.0,0.616325]
[1723389177014,0.012,60312.0,60311.0,0.850455]
[1723389177241,0.011,60312.0,60311.0,0.837455]
[1723389177495,0.012,60312.0,60311.0,0.850455]
[1723389177713,0.001,60312.0,60311.0,1.53589992]
[1723389177913,0.001,60312.0,60311.0,1.64084808]
[1723389178116,0.001,60312.0,60311.0,1.65384808]
[1723389178326,0.002,60312.0,60311.0,1.65384664]
[1723389178660,0.002,60312.0,60311.0,1.45134664]
[1723389180976,0.002,60312.0,60311.0,1.45174962]
[1723389181615,0.002,60312.0,60311.0,1.33568462]
[1723389181834,0.002,60312.0,60311.0,1.45190142]
[1723389183397,0.01807823,60332.0,60327.0,0.812238]
[1723389183624,0.01,60330.0,60329.0,0.11603]
[1723389184050,0.00807823,60332.0,60329.0,0.23206]
[1723389184253,0.00807823,60332.0,60329.0,0.116029]
[1723389184450,0.01,60326.0,60325.0,0.348113]
[1723389184600,0.01,60326.0,60325.0,0.580189]
[1723389184809,0.01,60326.0,60325.0,0.348113]
[1723389185417,0.01,60326.0,60312.0,0.232123]
[1723389185418,0.01,60315.0,60314.0,0.232118]
[1723389185639,0.0935,60325.0,60320.0,0.348142]
[1723389185640,0.09184646,60321.0,60320.0,0.348142]
[1723389185846,0.01,60323.0,60322.0,0.34813]
[1723389186042,0.08184646,60328.0,60325.0,0.58019]
[1723389186043,0.01,60326.0,60325.0,0.58019]
[1723389186252,0.01,60326.0,60325.0,0.97608092]
[1723389186671,0.01,60326.0,60325.0,1.20815692]
[1723389186871,0.01,60326.0,60325.0,1.07608092]
[1723389187072,0.01,60326.0,60325.0,1.33115692]
[1723389187279,0.01,60326.0,60325.0,1.43660065]
[1723389187509,0.001,60326.0,60325.0,1.44960065]
[1723389188298,0.001,60326.0,60325.0,1.46360065]
[1723389188489,0.011,60326.0,60325.0,1.46360065]
[1723389188693,0.001,60326.0,60325.0,1.46360065]
[1723389188991,0.011,60326.0,60325.0,1.12608092]
[1723389189759,0.011,60326.0,60325.0,0.027]
[1723389189960,0.18404646,60326.0,60325.0,0.027]
[1723389190600,0.18604646,60326.0,60325.0,0.027]
[1723389190825,0.18404646,60326.0,60325.0,0.027]
[1723389191054,0.18404646,60326.0,60325.0,0.143038]
[1723389191256,0.09284646,60326.0,60325.0,0.375114]
[1723389191466,0.09284646,60326.0,60325.0,0.60719]
[1723389191669,0.09284646,60326.0,60325.0,0.375114]
[1723389192274,0.09284646,60326.0,60325.0,0.63019]
[1723389192736,0.08284646,60326.0,60325.0,0.63019]
[1723389193190,0.09284646,60326.0,60325.0,0.143038]
[1723389193435,0.09284646,60326.0,60325.0,0.60719]
[1723389193671,0.09284646,60326.0,60325.0,0.63019]
[1723389193950,0.09284646,60326.0,60325.0,0.398114]
[1723389194591,0.09284646,60326.0,60325.0,0.63019]
[1723389196077,0.09284646,60326.0,60325.0,0.398114]
[1723389196313,0.09284646,60326.0,60325.0,0.375114]
[1723389196479,0.09284646,60326.0,60325.0,0.027]
[1723389196890,0.09484646,60326.0,60325.0,0.027]
[1723389197091,0.09284646,60326.0,60325.0,0.143038]
[1723389197791,0.09284646,60326.0,60325.0,0.375114]
[1723389197995,0.09284646,60326.0,60325.0,0.60719]
[1723389198608,0.09284646,60326.0,60325.0,0.63019]
[1723389198810,0.09284646,60326.0,60325.0,0.027]
[1723389199328,0.20888246,60326.0,60325.0,0.027]
[1723389199538,0.55725446,60326.0,60325.0,0.027]
[1723389199742,0.55808546,60326.0,60325.0,0.027]
[1723389200149,0.55808546,60326.0,60325.0,0.014]
[1723389200356,0.55708546,60326.0,60325.0,0.014]
[1723389200572,0.55708546,60326.0,60325.0,0.018]
[1723389200974,0.20897746,60326.0,60325.0,0.018]
[1723389201184,0.20897746,60326.0,60325.0,0.134038]
[1723389201437,0.20897746,60326.0,60325.0,0.366114]
[1723389201647,0.20897746,60326.0,60325.0,0.134038]
[1723389201940,0.20897746,60326.0,60325.0,0.120038]
[1723389202346,0.20897746,60326.0,60325.0,0.124038]
[1723389202969,0.20897746,60326.0,60325.0,0.356114]
[1723389203381,0.09467746,60326.0,60325.0,0.356114]
[1723389203589,0.09267746,60326.0,60325.0,0.58819]
[1723389203804,0.09267746,60326.0,60325.0,0.71765051]
[1723389204234,0.09267746,60326.0,60325.0,0.25349851]
[1723389204438,0.09467746,60326.0,60325.0,0.008]
[1723389204822,1.36007746,60326.0,60325.0,0.008]
[1723389205437,1.35807746,60326.0,60325.0,0.008]
[1723389206005,1.35807746,60326.0,60325.0,0.124038]
[1723389206219,1.35807746,60326.0,60325.0,0.356114]
[1723389206594,1.35807746,60326.0,60325.0,0.4626693]
[1723389207109,1.35807746,60326.0,60325.0,0.356114]
[1723389207311,1.35807746,60326.0,60325.0,0.46258193]
[1723389207546,1.34807746,60326.0,60325.0,0.46258193]
[1723389207877,1.35807746,60326.0,60325.0,0.46258193]
[1723389209857,1.35807746,60326.0,60325.0,0.23050593]
[1723389210063,1.35807746,60326.0,60325.0,0.23072838]
[1723389210264,1.36007746,60326.0,60325.0,0.23072838]
[1723389210558,1.35807746,60326.0,60325.0,0.11469038]
[1723389210965,1.35807746,60326.0,60325.0,0.008]
[1723389211586,1.34807746,60326.0,60325.0,0.008]
[1723389211794,1.35807746,60326.0,60325.0,0.008]
[1723389212767,1.36007746,60326.0,60325.0,0.008]
[1723389213175,1.35007746,60326.0,60325.0,0.008]
[1723389213605,1.36007746,60326.0,60325.0,0.008]
[1723389214675,1.93542146,60326.0,60325.0,0.008]
[1723389214888,2.05145746,60326.0,60325.0,0.008]
[1723389216855,0.01,60318.0,60317.0,0.116053]
[1723389217022,0.01,60318.0,60317.0,0.34816]
[1723389217370,0.01,60318.0,60315.0,0.232111]
[1723389217371,0.01,60316.0,60315.0,0.232111]
[1723389217645,0.01,60316.0,60315.0,0.348168]
[1723389217941,0.01,60316.0,60315.0,0.116057]
[1723389218351,0.01,60314.0,60313.0,0.348183]
[1723389218559,0.09184646,60314.0,60313.0,0.348183]
[1723389219523,0.09184646,60314.0,60313.0,0.362183]
[1723389219963,0.09284646,60314.0,60313.0,0.376183]
[1723389220159,0.09284646,60314.0,60313.0,0.48217324]
[1723389220384,0.09284646,60314.0,60313.0,0.25005124]
[1723389220597,0.09284646,60314.0,60313.0,0.48217324]
[1723389220825,0.09284646,60314.0,60313.0,0.25005124]
[1723389221028,0.09284646,60314.0,60313.0,0.48217324]
[1723389221227,0.09284646,60314.0,60313.0,0.25005124]
[1723389221434,0.09284646,60314.0,60313.0,0.48217324]
[1723389221845,0.09284646,60314.0,60313.0,0.25005124]
[1723389222261,1.55534646,60314.0,60313.0,0.13399024]
[1723389222420,1.55534646,60314.0,60313.0,0.144061]
[1723389223027,1.34924646,60314.0,60313.0,0.130061]
[1723389223233,1.34924646,60314.0,60313.0,0.68518362]
[1723389223541,1.35024646,60314.0,60313.0,0.69618362]
[1723389224356,1.35024646,60314.0,60313.0,0.71918362]
[1723389224560,1.35024646,60314.0,60313.0,0.95130562]
[1723389224993,1.35024646,60314.0,60313.0,0.95030562]
[1723389225146,1.35124646,60314.0,60313.0,0.96130562]
[1723389225550,1.35024646,60314.0,60313.0,1.11494875]
[1723389225766,1.35024646,60314.0,60313.0,1.12594875]
[1723389225995,1.35124646,60314.0,60313.0,1.12594875]
[1723389226375,1.34124646,60314.0,60313.0,1.12594875]
[1723389226575,1.35124646,60314.0,60313.0,1.19478451]
[1723389226775,1.35124646,60314.0,60313.0,1.19478506]
[1723389227133,1.35124646,60314.0,60313.0,1.12594875]
[1723389227502,1.34124646,60314.0,60313.0,1.12594875]
[1723389228262,1.34124646,60314.0,60313.0,1.19478542]
[1723389228664,0.002,60314.0,60313.0,1.19478542]
[1723389229179,0.012,60314.0,60313.0,0.253122]
[1723389229445,0.012,60314.0,60313.0,0.70723]
[1723389229639,0.012,60314.0,60313.0,0.939352]
[1723389230002,0.012,60314.0,60313.0,0.70723]
[1723389230205,0.012,60314.0,60313.0,0.475108]
[1723389230537,0.012,60314.0,60313.0,0.70723]
[1723389230776,0.012,60314.0,60313.0,0.73023]
[1723389232651,0.012,60314.0,60313.0,0.73107734]
[1723389233092,0.012,60314.0,60313.0,0.624305]
[1723389233293,0.233,60314.0,60313.0,0.12777295]
[1723389233500,0.235,60314.0,60313.0,0.12777295]
[1723389233876,0.235,60314.0,60313.0,0.24383395]
[1723389234362,0.012,60314.0,60313.0,0.70807795]
[1723389234554,1.2694,60314.0,60313.0,0.96319995]
[1723389235006,1.2694,60314.0,60313.0,0.73107795]
[1723389235747,1.2694,60314.0,60313.0,0.49895595]
[1723389235953,1.2694,60314.0,60313.0,0.24383395]
[1723389236156,1.2694,60314.0,60313.0,0.369183]
[1723389236157,1.2714,60314.0,60313.0,0.369183]
[1723389236360,1.2714,60314.0,60313.0,0.4750749]
[1723389237534,1.3941,60314.0,60313.0,0.1268919]
[1723389237695,1.3941,60314.0,60313.0,0.021]
[1723389238015,1.3941,60314.0,60313.0,0.24293977]
[1723389238016,1.2714,60314.0,60313.0,0.24293977]
[1723389238215,1.2714,60314.0,60313.0,0.47506177]
[1723389239616,1.2714,60314.0,60313.0,0.369183]
[1723389239938,1.2714,60314.0,60313.0,0.12663594]
[1723389240319,1.2714,60314.0,60313.0,0.24269694]
[1723389240518,1.2714,60314.0,60313.0,0.12663594]
[1723389241836,1.2714,60314.0,60313.0,0.24269694]
[1723389242259,1.2714,60314.0,60313.0,0.137061]
[1723389242448,1.2714,60314.0,60313.0,0.24272107]
[1723389242656,1.2714,60314.0,60313.0,0.47472525]
[1723389242798,1.2694,60314.0,60313.0,0.70684725]
[1723389243002,1.2694,60314.0,60313.0,0.72984725]
[1723389243431,1.2694,60314.0,60313.0,0.7305546]
[1723389243862,1.2694,60314.0,60313.0,0.73055413]
[1723389244294,1.2714,60314.0,60313.0,0.47543213]
[1723389244427,1.2714,60314.0,60313.0,0.70755413]
[1723389244428,1.2694,60314.0,60313.0,0.70755413]
[1723389244843,1.2694,60314.0,60313.0,0.73055413]
[1723389245945,1.2694,60314.0,60313.0,0.73085966]
[1723389246347,1.2694,60314.0,60313.0,0.70785966]
[1723389247518,1.2694,60314.0,60313.0,0.77669855]
[1723389249237,1.2694,60314.0,60313.0,0.77761155]
[1723389249634,1.2694,60314.0,60313.0,0.77821779]
[1723389249956,1.2694,60314.0,60313.0,0.67105606]
[1723389250120,1.2694,60314.0,60313.0,0.77821844]
[1723389251175,1.2694,60314.0,60313.0,0.70938038]
[1723389251831,1.2694,60314.0,60313.0,0.24513638]
[1723389252235,1.3829,60314.0,60313.0,0.24513638]
[1723389253165,1.3829,60314.0,60313.0,0.021913]
[1723389253367,1.3829,60314.0,60313.0,0.12990029]
[1723389254101,1.3719,60314.0,60313.0,0.10890029]
[1723389254300,1.3809,60314.0,60313.0,0.10890029]
[1723389254557,1.2684,60314.0,60313.0,0.47008329]
[1723389254729,1.2684,60314.0,60313.0,0.70220529]
[1723389254891,1.2684,60314.0,60313.0,0.69520529]
[1723389254892,1.2674,60314.0,60313.0,0.69520529]
[1723389255299,1.2674,60314.0,60313.0,0.23096129]
[1723389255493,1.2674,60314.0,60313.0,0.10890029]
[1723389255746,1.2674,60314.0,60313.0,0.11090029]
[1723389256332,1.2674,60314.0,60313.0,0.11390029]
[1723389256758,1.2674,60314.0,60313.0,0.45876286]
[1723389256987,1.2684,60314.0,60313.0,0.69788486]
[1723389257266,1.2684,60314.0,60313.0,0.68888486]
[1723389257267,1.2674,60314.0,60313.0,0.68888486]
[1723389257624,1.2674,60314.0,60313.0,0.46076286]
[1723389257826,1.2674,60314.0,60313.0,0.45676286]
[1723389258026,1.2684,60314.0,60313.0,0.46476286]
[1723389258267,1.2694,60314.0,60313.0,0.47176286]
[1723389258651,1.2684,60314.0,60313.0,0.46376286]
[1723389258852,1.2684,60314.0,60313.0,0.70188486]
[1723389259640,1.2674,60314.0,60313.0,0.69488486]
[1723389259855,1.2674,60314.0,60313.0,0.70088486]
[1723389260017,1.2674,60314.0,60313.0,0.69488486]
[1723389260426,1.2684,60314.0,60313.0,0.70167935]
[1723389261232,1.2684,60314.0,60313.0,0.93380135]
[1723389263783,1.2684,60314.0,60313.0,0.362096]
[1723389263994,1.2684,60314.0,60313.0,0.70186727]
[1723389264131,1.2684,60314.0,60313.0,0.46974527]
[1723389264333,1.2704,60314.0,60313.0,0.46974897]
[1723389264536,1.2684,60314.0,60313.0,0.46974897]
[1723389264740,2.07735255,60314.0,60313.0,0.013913]
[1723389264955,0.01,60295.0,60294.0,0.3492061]
[1723389265154,1.2516588,60295.0,60294.0,0.45583103]